Cogmind - Beta 14 @@@ ROGUE MODE // 2025.05.05 @ 11:26:50 Player: BVrutally Odd Result: Destroyed by ZG-5WU(R) with Subdweller Beam Cannon Performance ------------- Evolutions (0) 0 Regions Visited (2) 400 Robots Destroyed (34) 170 Value Destroyed (769) 769 Prototype IDs (13) 260 Alien Tech Used (0) 0 Bonus (11) 11 TOTAL SCORE: 1610 Bonus ------- High Alert Combat Kills 11 Cogmind --------- Core Integrity 0/250 Matter 290/300 Energy 214/250 System Corruption 0% Temperature Cool (42) Movement Treading (250) Ox1 Location -10/Subcaves Parts ------- > --- POWER (1) -------- Ion Engine > --- PROPULSION (2) --- Light Treads Spiked Treads > --- UTILITY (2) ------ High-capacity Storage Unit Targeting Computer > --- WEAPON (2) ------- Subdweller Laser Subdweller Beam Cannon > --- INVENTORY (20) --- Ion Engine Subdweller Power Source Light Treads Spiked Treads Aluminum Leg Aluminum Leg Compact Wheel Subdweller Monowheel Improved Heat Sink Subdweller Optics Signal Interpreter Improved Terrain Scanner Gun Armor Makeshift System Shield Riot Gun Particle Gun Subdweller Laser Light Assault Rifle Makeshift Axe Peak State ------------ > --- POWER ------------ Ion Engine > --- PROPULSION ------- Light Treads Spiked Treads > --- UTILITY ---------- Improved Heat Sink High-capacity Storage Unit > --- WEAPON ----------- Subdweller Laser Subdweller Machine Gun > --- INVENTORY -------- Ion Engine Subdweller Power Source Light Treads Light Treads Light Treads Aluminum Leg Aluminum Leg Compact Wheel Subdweller Monowheel Improved Heat Sink Subdweller Optics Signal Interpreter Improved Terrain Scanner Targeting Computer EM Pulse Gun Small Laser Particle Gun Subdweller Laser Light Assault Rifle Hammer [Rating: 14] Favorites ----------- Power Ion Engine Engine Ion Engine Propulsion Light Treads Treads Light Treads Utility High-capacity Storage Unit Device Improved Heat Sink Storage High-capacity Storage Unit Processor Targeting Computer Protection Light Armor Plating Weapon Subdweller Machine Gun Energy Gun Subdweller Laser Energy Cannon Subdweller Beam Cannon Ballistic Gun Subdweller Machine Gun Impact Weapon Hammer Build | -11 -10 -10 ------- Run | Yrd Mat Sub Slots Evolved . | . . . Power . | . . . Propulsion . | . . . Utility . | . . . Weapon . | . . . Parts Attached 35 | 8 10 17 Power 2 | 1 . 1 Engine 2 | 1 . 1 Core . | . . . Reactor . | . . . Propulsion 7 | 2 2 3 Treads 7 | 2 2 3 Leg . | . . . Wheel . | . . . Hover . | . . . Flight . | . . . Utility 9 | 2 4 3 Device 5 | 1 3 1 Storage 2 | 1 1 . Processor 1 | . . 1 Hackware . | . . . Protection 1 | . . 1 Artifact . | . . . Weapon 17 | 3 4 10 Energy Gun 8 | 1 1 6 Energy Cannon 1 | . . 1 Ballistic Gun 6 | 2 3 1 Ballistic Cannon . | . . . Launcher . | . . . Special Weapon . | . . . Impact Weapon 2 | . . 2 Slashing Weapon . | . . . Piercing Weapon . | . . . Special Melee Weapon . | . . . Unidentified Prototypes . | . . . Parts Lost 7 | . 1 6 Power 1 | . . 1 Propulsion 1 | . . 1 Utility 3 | . 1 2 Weapon 2 | . . 2 Highest Loss Streak 2 | . 1 2 To Critical Strikes . | . . . Average Slot Usage (%) 98 | . 99 98 Engine 13 | . 14 12 Treads 27 | . 27 27 Device 11 | . 14 10 Storage 14 | . 14 14 Processor 1 | . . 1 Protection 1 | . . 1 Energy Gun 11 | . 5 12 Ballistic Gun 16 | . 22 14 Peak Build Rating 14 | 7 12 14 Average Rating 11 | 6 10 12 On Entrance 5 | . 7 9 Naked Turns . | . . . Heaviest Build 57 | 13 51 57 Greatest Support 40 | 40 40 40 Greatest Overweight (x) 4 | 4 1 1 Average Overweight (x) . | . . 1 Largest Inventory Capacity 20 | 8 20 20 Average Capacity 19 | 7 17 20 Most Carried 20 | 7 17 20 Average Carried 17 | 4 13 19 Final Capacity 20 | 8 20 20 Final Carried 19 | 7 17 19 Class Distribution -------------------- 100% | Mutant Dominant Class ---------------- Mutant | -10/Materials Mutant | -10/Subcaves Resources | -11 -10 -10 ----------- Run | Yrd Mat Sub Matter Collected 869 | 310 196 363 Remotely . | . . . Salvage Created 1333 | 149 554 630 Parts 85 | 9 41 35 Haulers Intercepted 2 | . 2 . Recyclers Shooed 2 | . 2 . Parts Field Recycled . | . . . Retrieved Matter . | . . . Parts Self-Destructed 15 | . . 15 Prevented . | . . . Kills | -11 -10 -10 ------- Run | Yrd Mat Sub Combat Hostiles Destroyed 24 | . 9 15 Guns 24 | . 9 15 Classes Destroyed 11 | 3 4 4 Worker 1 | 1 . . Tunneler 3 | 3 . . Hauler 2 | . 2 . Recycler 3 | 1 2 . Watcher 1 | . 1 . Swarmer 8 | . 3 5 Grunt 7 | . 6 1 Sentry 1 | . . 1 Artisan 1 | . . 1 Cobbler 1 | . . 1 Subdweller 8 | . . 8 Best Kill Streak 5 | 2 5 3 Combat Bots Only 5 | . 5 3 Max Kills in Single Turn 1 | 1 1 1 Gunslinging . | . . . Exploded . | . . . Melee . | . . . Uniques/NPCs Destroyed . | . . . Combat | -11 -10 -10 -------- Run | Yrd Mat Sub Hostile Shots Fired 150 | . 61 89 Missed 49 | . 27 22 Damage Taken 1681 | . 409 1272 Core 272 | . 46 226 Absorbed by Shields . | . . . Regen/Repaired (Parts) 229 | . 229 . Core Remaining (%) 100 | 100 . . Volleys Fired 159 | 17 46 96 Largest 2 | 2 2 2 Hottest 140 | 60 85 140 Shots Fired 270 | 34 92 144 Gun 268 | 34 92 142 Cannon 2 | . . 2 Launcher . | . . . Special . | . . . Kinetic 181 | 30 81 70 Thermal 85 | . 11 74 Explosive . | . . . Electromagnetic 4 | 4 . . Robot Hit Streak 21 | 5 11 21 Robot Miss Streak 4 | 2 4 3 Penetration Max . | . . . Secondary Targets 3 | . 1 2 Max Gunslinging Chain 1 | . 1 1 Shots Hit Robots 172 | 21 60 91 Core Hits 72 | 9 30 33 Critical Kills 1 | . . 1 Critical Parts Destroyed 3 | . 2 1 Critical Strikes 4 | . 2 2 Destroy 3 | . 2 1 Smash 1 | . . 1 Melee Attacks 20 | . . 20 Impact 20 | . . 20 Slashing . | . . . Piercing . | . . . Sneak Attacks 1 | . . 1 Combat Hostiles . | . . . Follow-up Attacks . | . . . Damage Inflicted 2233 | 182 664 1387 Guns 2118 | 182 664 1272 Cannons 55 | . . 55 Explosions . | . . . Melee 60 | . . 60 Ramming . | . . . Kinetic 1481 | 167 530 784 Thermal 677 | . 134 543 Explosive . | . . . Electromagnetic 15 | 15 . . Impact 60 | . . 60 Slashing . | . . . Piercing . | . . . Highest Corruption . | . . . Average Corruption . | . . . Corruption Purged . | . . . Corruption Blocked . | . . . Overload Shots . | . . . Overflow Damage 60 | . . 60 Projectiles . | . . . Explosions . | . . . Melee 60 | . . 60 Knockbacks 1 | . . 1 Impact 1 | . . 1 Kinetic . | . . . Secondary . | . . . Self-Inflicted Damage . | . . . Shots . | . . . Rammed . | . . . Targets Rammed . | . . . Kicked . | . . . Crushed . | . . . Highest Temperature 60 | 40 60 33 Average Temperature 15 | 16 14 19 Received Heat Transfer 405 | . 180 225 Siege Activations . | . . . Robots Corrupted 1 | . . 1 Combat Hostiles . | . . . Parts Fried 1 | . . 1 Impact Corruptions 2 | . . 2 Robots Melted . | . . . Combat Hostiles . | . . . Parts Melted 1 | . . 1 Heat Transferred 1145 | . 296 849 Parts Sabotaged . | . . . Parts Stolen . | . . . Parts Stripped . | . . . Power Chain Reactions . | . . . Alert | -11 -10 -10 ------- Run | Yrd Mat Sub Peak Influence 461 | 25 461 . Initial 16 | . 16 . Average 174 | 11 195 . Maximum Alert Level 2 | . 2 . Low Security (%) 69 | 100 65 . Level 1 24 | . 27 . Level 2 6 | . 6 . Level 3 . | . . . Level 4 . | . . . Level 5 . | . . . High Security . | . . . Max Security . | . . . Squads Dispatched 2 | . 2 . Investigation 2 | . 2 . Extermination . | . . . Reinforcement . | . . . Assault . | . . . Garrison . | . . . Intercept . | . . . Searches Triggered . | . . . Construction Impeded . | . . . Haulers Reinforced . | . . . Active Scanning Responses . | . . . Cargo Convoy Interrupts . | . . . Stealth | -11 -10 -10 --------- Run | Yrd Mat Sub Distress Signals 1 | . 1 . Communications Jammed . | . . . Distress Signals . | . . . Times Spotted 36 | . 16 20 Peak Tracking Total 4 | . 4 3 Tactical Retreats 1 | . 1 . Traps | -11 -10 -10 ------- Run | Yrd Mat Sub Traps Triggered 1 | . 1 . Indirectly . | . . . Trap Hack Attempts . | . . . Triggered . | . . . Disarmed . | . . . Reprogrammed . | . . . Reused . | . . . Traps Extracted . | . . . Installed . | . . . Triggered . | . . . Machines | -11 -10 -10 ---------- Run | Yrd Mat Sub Machines Disabled 1 | . . 1 Max in Single Turn 1 | . . 1 Machines Repaired . | . . . Machines Dismantled . | . . . Machines Sabotaged . | . . . Overloaded Fab Kills . | . . . Hacking | -11 -10 -10 --------- Run | Yrd Mat Sub Machines Accessed 10 | . 9 1 Terminals 7 | . 7 . Fabricators . | . . . Repair Stations 1 | . 1 . Recycling Units 1 | . 1 . Scanalyzers . | . . . Garrison Access . | . . . Total Hacks 36 | . 27 9 Successful 22 | . 13 9 Failed 14 | . 14 . Catastrophic 2 | . 2 . Database Lockouts . | . . . Manual 9 | . 9 . Terminals 21 | . 21 . Fabricators . | . . . Repair Stations 4 | . 4 . Recycling Units 2 | . 2 . Scanalyzers . | . . . Garrison Access . | . . . Terminal Hacks 16 | . 7 9 Record 8 | . . 8 Prototype ID Bank 1 | . 1 . Branch Access Points 1 | . 1 . Emergency Access Points 1 | . 1 . Locate Traps 2 | . 2 . Zone Layout 2 | . 2 . Derelict Proto ID Bank 1 | . . 1 Fabricator Hacks . | . . . Repair Station Hacks 4 | . 4 . Scan Component 2 | . 2 . Repair 2 | . 2 . Recycling Unit Hacks 1 | . 1 . Retrieve Components 1 | . 1 . Scanalyzer . | . . . Garrison Access Hacks . | . . . Unauthorized Hacks 1 | . 1 . Terminals 1 | . 1 . Botnet 1 | . 1 . Fabricators . | . . . Repair Stations . | . . . Recycling Units . | . . . Scanalyzers . | . . . Garrison Access . | . . . Data Cores Recovered . | . . . Used . | . . . Hacking Detections 8 | . 8 . Full Trace Events 1 | . 1 . Feedback Events . | . . . Feedback Blocked . | . . . Robot Schematics Acquired . | . . . Robots Built . | . . . Authchips . | . . . Time . | . . . Total Robot Build Rating . | . . . Part Schematics Acquired . | . . . Parts Built . | . . . Authchips . | . . . Time . | . . . Total Part Build Rating . | . . . Parts Repaired 2 | . 2 . Time 52 | . 52 . Parts Recycled . | . . . Recycled Matter . | . . . Retrieved Matter . | . . . Retrieved Components 1 | . 1 . Parts Scanalyzed . | . . . Part Schematics Acquired . | . . . Parts Damaged . | . . . Bothacking | -11 -10 -10 ------------ Run | Yrd Mat Sub Used RIF Installer . | . . . Robots Hacked . | . . . Non-combat . | . . . Combat . | . . . Robot Hacks Applied . | . . . Relay Couplers Released . | . . . Fabnet Peak Effective % . | . . . Robots Rewired . | . . . Allies Hacked . | . . . Hacks Repelled . | . . . Allies | -11 -10 -10 -------- Run | Yrd Mat Sub Total Allies . | . . . Largest Group . | . . . Highest-Rated Group . | . . . Highest-Rated Ally . | . . . Total Orders . | . . . Ally Attacks . | . . . Total Damage . | . . . Kills . | . . . Allies Corrupted . | . . . Allies Melted . | . . . Intel | -11 -10 -10 ------- Run | Yrd Mat Sub Robot Analysis Total . | . . . Derelict Logs Recovered 2 | . . 2 Drone Launches . | . . . Drone Recoveries . | . . . Exploration | -11 -10 -10 ------------- Run | Yrd Mat Sub Turns Passed 6730 | 205 1611 4914 Spaces Moved 1589 | 87 408 1094 Core 14 | 14 . . Treads 1575 | 73 408 1094 Legs . | . . . Wheels . | . . . Hover . | . . . Flight . | . . . Fastest Speed 50 | 50 160 240 Average Speed 232 | 154 215 244 Slowest Speed 250 | 250 240 250 Overloaded Moves . | . . . Propulsion Burnouts . | . . . Robots Hopped . | . . . Cave-ins Triggered . | . . . Exploration Rate (%) 49 | 6 76 65 Regions Visited 2 Branch Regions 1 Pre-discovered Areas 1 | . . 1 Known Exits Taken . | . . . Unknown Exits Taken 2 | 1 1 . Scrap Searched 4 | . . 4 Spaces Dug 6 | . . 6 Terrain Destroyed 6 | . . 6 Melee 3 | . . 3 Projectile 3 | . . 3 AOE . | . . . Terrain Rammed . | . . . Walls Destroyed . | . . . Machines Disabled . | . . . Actions | -11 -10 -10 --------- Run | Yrd Mat Sub Total 4334 | 126 1059 3149 Wait 2491 | 8 578 1905 Move 1587 | 86 407 1094 Hop . | . . . Pick Up 28 | 6 12 10 Fast Attach 12 | 8 3 1 Attach 8 | . 2 6 Detach 2 | 1 1 . Swap 15 | . 5 10 Drop 12 | . 5 7 Fire 159 | 17 46 96 Melee 20 | . . 20 Ram . | . . . Kick . | . . . Crush . | . . . Escape Stasis . | . . . Rewire . | . . . Trap . | . . . Miscellaneous . | . . . Route ------- -11/Scrapyard -10/Materials (discovered 4 exits: [*Mat] / *Min x2 / *Sub) -10/Subcaves (discovered 2 exits: [*Mat x2]) History --------- Turn | Location | Event 30 | -11/Scrapyard | Discovered new exit (range 15) 206 | -11/Scrapyard | Entered Materials 311 | -10/Materials | Build established: Mutant 539 | -10/Materials | Identified exit to Mines 666 | -10/Materials | Discovered new exit (range 7) 853 | -10/Materials | Repaired Lgt. Treads 880 | -10/Materials | Repaired Lgt. Treads 1758 | -10/Materials | Discovered new exit (range 4) 1817 | -10/Materials | Entered Subcaves 2080 | -10/Subcaves | Discovered new exit (range 11) 2664 | -10/Subcaves | Learned Materials interactive machine intel 2678 | -10/Subcaves | Shifting Twisted Machinery released Sub. Monowheel 4726 | -10/Subcaves | Shifting Twisted Machinery released Sub. Laser 5169 | -10/Subcaves | Shifting Twisted Machinery released Spk. Treads 5171 | -10/Subcaves | Shifting Twisted Machinery released Sub. Monowheel 5329 | -10/Subcaves | Learned location of Zion (-7) 5329 | -10/Subcaves | Met a Zionite searching for "candidates" 5447 | -10/Subcaves | Core integrity fell below 50% 5512 | -10/Subcaves | A swath of the cavern ceiling suddenly collapsed 5800 | -10/Subcaves | A swath of the cavern ceiling suddenly collapsed 6018 | -10/Subcaves | Disturbed a concealed Subdweller 6172 | -10/Subcaves | Shifting Twisted Machinery released Sub. Power Source 6216 | -10/Subcaves | Discovered new exit (range 4) 6217 | -10/Subcaves | Shifting Twisted Machinery released Spk. Treads 6489 | -10/Subcaves | Learned Materials stockpile data 6506 | -10/Subcaves | Visited 4L-MR0's lab 6527 | -10/Subcaves | Found Gun Armor 6730 | -10/Subcaves | Core integrity fell below 20% 6731 | -10/Subcaves | Destroyed by ZG-5WU(R) with Subdweller Beam Cannon Last Messages --------------- while firing. >>Record "Infernogeddon Engine" There was a rumor. A rumor but no details. I can't build something based on a vague rumor about ending the world in a hellish blaze at the flip of a switch. Also why would anyone want that. >>Record "Uberlauncher" I hear [REDACTED] exploded during the installation process. I did warn them to fully install it before trying to fire, and something tells me that's where things went wrong. Still I'm glad they didn't listen, that way I'm not culpable for whatever they would've done with it. If we're lucky even some of the others got blasted, too. 06518_ 4L-MR0 mumbles to no one in particular: "Damn Subs sneaking around stealing my stuff." 06520_ Testing Chamber breached. 06527_ Dropped Imp. Heat Sink. 06527_ Acquired Gun Armor. 06544_ 4L-MR0 mumbles: "I'm surprised some of them are even willing to come in here given their fear of my usual visitors." 06668_ Acquired 4 matter. 06717_ Sub. Machine Gun destroyed. Map ----- +----------------------------------------------------+ | ????????????????????????????????????????????????? | | ????????????????????????????????????????????????? | | ????????????????????????????????????????????????? | | ????????????????????????????????????????????????? | | ????????????????????????????????????????????????? | | ????????????????????????????????????????????????? | | ????????????????????????????????????????????????? | | ????????????????????????????????????????????????? | | ????????????????????????????????????????????????? | | ????????????????????????????????????????????????? | | ?????????????????? ????????????????????????????? | | ?????????????????# ???????????????????????????? | | ????????????????"" ???????????????????????????? | | ????????????????? ???????????????????????????? | | ?????????????????# "?????????????????????????? | | ?????????????????? ""?????????????????????????? | | ??????????????????? ""#?????????????????????????? | | ???????????????????# "#???####??????????????????? | | ???????????????????# ####" ###????????????????? | | ????????????#?????##""" "" ##???????????????? | | ???????????## ????#" ##??????????????? | | ?????????### "???# #??????????????? | | ????# ## #### #??????????????? | | ????? ####RR #??????????????? | | ???????# ## %##??# ## ##??????????????? | | ?????????????## ##??#@ ##???????????????????? | | ??????????????### #??####????????????????????? | | ???????????????## #??????????????????????????? | | ???????????????# ##??????????????????????????? | | ???????????????# ##???????????????????????????? | | ???????????????## #????????????????????????????? | | ???????????????# #????????????????????????????? | | ???????????????# ##???????????????????????????? | | ???????????????# & #???????????????????????????? | | ???????????????##%&##???????????????????????????? | | ????????????#### &##???????????????????????????? | | ?????????#### ## #???????????????????????????? | | ????????## ###??????????????????????????? | | ????????# ##?????????????????????????? | | ???????# ##???##???????????????????? | | ##?????## ##?# #???????????????????? | | "#?????## ###### ## #???????????????????? | | "#?????# #????## ## #???????????????????? | | "#?#####" #?????# #### ##???????????????????? | | "#?# # " #??######??# #????????????????????? | | "#?# #?## ##### #????????????????????? | | "#?# #?# ## #????????????????????? | | "#?# #" ### ##????????????????????? | | ##### ## ##?????????????????????? | | ##" # #??????????????????????? | +----------------------------------------------------+ Best States ------------- Heat Dissipation 39 Energy Generation 10 Energy Capacity 250 Matter Stores 300 Matter Capacity 300 Sight Range 16 Terrain Scan Density 10 Armor Coverage 150 Evasion (%) 40 Targeting Accuracy 5 Recoil Reduction 2 Item Schematics ----------------- None Robot Schematics ------------------ None Fabricated ------------ Nothing Alien Tech Used ----------------- None Achievements -------------- None Challenges ------------ None Game ------ Seed StorageHeartCycler Manual? 0 Play Time 00:20:37 Cumulative 251.8 hours Start 2025.05.05 @ 11:07:04 End 2025.05.05 @ 11:26:50 Sessions 1 Manual Loads 0 Difficulty Rogue Special Mode None Game No. 122 Rogue 63 Adventurer 16 Explorer 43 Win Type - Total 34 Types 21/5/2/1/0/1/2/1/1 Lore% 86 Gallery% 88 Achievement% 81 Wizard Run 0 Options --------- Layout 0 ASCII 0 Keyboard 0 Movement Mouse Keybinds 0 Fullscreen 1 Font 24/Tamsyn Map View 76x50 Zoom Use 0% Tactical HUD 1 Map Filters NONE Filters NONE Steam 1 RUN: 6450db93-8b79-4f3f-8b9f-606f2b31dcb2